[Event "Moscow Open RSSU Cup 2019"]
[Site "Moscow"]
[Date "2019.02.02"]
[Round "9"]
[White "Kryakvin, Dmitry"]
[Black "Shukh, Nikolai"]
[Result "1-0"]
[ECO "A25"]
[WhiteElo "2588"]
[BlackElo "2459"]
[Annotator "RC"]
[PlyCount "81"]
[EventDate "2019.01.26"]
[EventType "swiss"]
[EventCountry "RUS"]
[SourceTitle "playchess.com"]
[Source "ChessBase"]
[SourceQuality "1"]
[TimeControl "40/5400+30:1800+30"]

1. g3 {[%emt 0:00:00]} e5 {[%emt 0:02:07]} 2. Bg2 {[%emt 0:00:39]} Nc6 {[%emt 0:02:11]} 3. c4 {[%emt 0:01:14]} g6 {[%emt 0:00:04]} 4. Nc3 {[%emt 0:02:02]} Bg7 {[%emt 0:00:06]} 5. Rb1 {[%emt 0:01:33]} f5 {[%emt 0:03:06]} 6. d3 {[%emt 0:01:21]} Nf6 {[%emt 0:02:17]} 7. e3 {[%emt 0:01:51]} d6 {[%emt 0:00:30]} 8. Nge2 {[%emt 0:01:31]} Be6 {[%emt 0:01:20]} 9. Nd5 {[%emt 0:03:14]} Qd7 {[%emt 0:01:37]} 10. Qa4 {[%emt 0:01:43]} O-O 11. Nec3 {[%emt 0:03:25]} Qf7 {[%emt 0:14:27]} 12. O-O {[%emt 0:04:03]} Nd8 {[%emt 0:07:43]} 13. Bd2 {[%emt 0:04:48]} c6 {[%emt 0:00:52]} 14. Nb6 {[%emt 0:04:35]} axb6 {[%emt 0:08:17]} 15. Qxa8 {[%emt 0:00:05]} e4 {[%emt 0:00:03]} 16. Qa3 {[%emt 0:08:57]} exd3 {[%emt 0:00:25]} 17. b3 {[%emt 0:02:24]} d5 {[%emt 0:07:45]} 18. cxd5 {[%emt 0:06:23]} Nxd5 {[%emt 0:03:38]} 19. Nxd5 {[%emt 0:04:22]} Bxd5 {[%emt 0:00:49]} 20. Qd6 {[%emt 0:00:18]} Ne6 {[%emt 0:18:29]} 21. Bxd5 {[%emt 0:00:55]} cxd5 {[%emt 0:00:04]} 22. Qxd5 {[%emt 0:01:30]} Rd8 {[%emt 0:00:04]} 23. Qb5 {[%emt 0:03:58]} g5 {[%emt 0:03:09]} 24. f3 {[%emt 0:03:02]} f4 {[%emt 0:00:56]} 25. Rbd1 {[%emt 0:00:42]} Qc7 {[%emt 0:03:15]} 26. gxf4 {[%emt 0:03:18]} gxf4 {[%emt 0:00:06]} 27. Kh1 {[%emt 0:00:13]} Qc6 {[%emt 0:04:00]} 28. Qxc6 {[%emt 0:02:41]} bxc6 {[%emt 0:00:04]} 29. exf4 {[%emt 0:00:07]} c5 {[%emt 0:05:38]} 30. f5 {[%emt 0:02:17]} Nc7 {[%emt 0:02:45]} 31. Rfe1 {[%emt 0:02:22]} Bf6 {[%emt 0:04:51]} 32. Re3 {[%emt 0:02:20]} Nb5 {[%emt 0:02:44]} 33. a4 {[%emt 0:02:09]} Nd4 {[%emt 0:00:58]} 34. Rxd3 {[%emt 0:00:08]} Rd5 {[%emt 0:00:07]} 35. Bf4 {[%emt 0:01:06]} Bd8 {[%emt 0:01:24]} 36. Re1 {[%emt 0:02:10]} Kf7 {[%emt 0:00:36]} 37. Re5 {[%emt 0:01:01]} Rd7 {[%emt 0:00:05]} 38. Be3 {[%emt 0:02:47]} Bf6 {[%emt 0:00:06]} 39. Re6 {[%emt 0:00:31]} Rb7 {[%emt 0:01:01]} 40. Bxd4 {[%emt 0:00:00]} Bxd4 {[%emt 0:00:00]} 41. f4 {[%emt 0:01:22]} 1-0

[Event "Moscow Open RSSU Cup 2019"]
[Site "Moscow"]
[Date "2019.02.03"]
[Round "9"]
[White "Pridorozhni, Aleksei"]
[Black "Urazayev, Arystanbek"]
[Result "1-0"]
[ECO "C07"]
[WhiteElo "2568"]
[BlackElo "2450"]
[Annotator "ChessBase"]
[PlyCount "121"]
[EventDate "2019.01.26"]
[EventType "swiss"]
[EventCountry "RUS"]
[SourceTitle "playchess.com"]
[Source "ChessBase"]
[SourceQuality "1"]
[TimeControl "40/5400+30:1800+30"]

1. e4 {[%emt 0:00:00]} e6 {[%emt 0:10:17]} 2. d4 {[%emt 0:00:00]} d5 {[%emt 0:00:03]} 3. Nd2 {[%emt 0:00:00]} c5 {[%emt 0:00:05]} 4. Ngf3 {[%emt 0:00:01]} Nc6 {[%emt 0:00:30]} 5. c3 {[%emt 0:00:56]} Nf6 {[%emt 0:02:36]} 6. Bd3 {[%emt 0:05:38]} cxd4 {[%emt 0:00:57]} 7. cxd4 {[%emt 0:00:06]} dxe4 {[%emt 0:00:04]} 8. Nxe4 Be7 {[%emt 0:00:29]} 9. O-O {[%emt 0:00:28]} O-O {[%emt 0:00:49]} 10. Be3 {[%emt 0:06:07]} Nb4 {[%emt 0:04:22]} 11. Nxf6+ {[%emt 0:00:59]} Bxf6 {[%emt 0:00:05]} 12. Be4 {[%emt 0:00:03]} Nd5 {[%emt 0:02:42]} 13. Qd3 {[%emt 0:02:40]} g6 {[%emt 0:10:01]} 14. Bh6 {[%emt 0:03:05]} Bg7 {[%emt 0:05:21]} 15. Bxg7 {[%emt 0:00:25]} Kxg7 {[%emt 0:00:03]} 16. Ne5 {[%emt 0:00:19]} b6 {[%emt 0:02:09]} 17. Qg3 {[%emt 0:07:51]} Ba6 {[%emt 0:09:34]} 18. Rfe1 {[%emt 0:07:27]} Rc8 {[%emt 0:09:40]} 19. Qa3 {[%emt 0:09:53]} Bb5 {[%emt 0:00:18]} 20. Qb3 {[%emt 0:00:06]} Bc6 {[%emt 0:04:02]} 21. g3 {[%emt 0:02:23]} Bb7 {[%emt 0:02:05]} 22. h4 {[%emt 0:02:56]} Qe7 {[%emt 0:10:09]} 23. Qf3 {[%emt 0:11:13]} Rfd8 {[%emt 0:04:42]} 24. h5 {[%emt 0:10:17]} Rc7 {[%emt 0:00:58]} 25. Rac1 {[%emt 0:04:27]} Rdc8 {[%emt 0:03:28]} 26. Rxc7 {[%emt 0:01:25]} Rxc7 {[%emt 0:00:04]} 27. Bxd5 {[%emt 0:01:19]} Bxd5 {[%emt 0:01:01]} 28. Qe3 {[%emt 0:00:05]} gxh5 {[%emt 0:09:47]} 29. Nd3 {[%emt 0:00:21]} Qf6 {[%emt 0:01:28]} 30. Nf4 {[%emt 0:00:11]} Qf5 {[%emt 0:00:21]} 31. a3 {[%emt 0:02:06]} Bb7 {[%emt 0:01:12]} 32. Kh2 {[%emt 0:02:43]} Rc2 {[%emt 0:01:23]} 33. b4 {[%emt 0:01:52]} Kf8 {[%emt 0:00:30]} 34. a4 {[%emt 0:04:05]} h4 {[%emt 0:01:43]} 35. gxh4 {[%emt 0:00:08]} Qg4 {[%emt 0:00:07]} 36. a5 {[%emt 0:01:10]} Qxh4+ {[%emt 0:01:14]} 37. Nh3 {[%emt 0:00:05]} Bd5 {[%emt 0:00:53]} 38. axb6 {[%emt 0:01:41]} axb6 {[%emt 0:00:03]} 39. b5 {[%emt 0:00:04]} Ke8 {[%emt 0:02:09]} 40. Rg1 {[%emt 0:00:00]} Rb2 {[%emt 0:00:00]} 41. Rg8+ {[%emt 0:09:22]} Kd7 {[%emt 0:03:49]} 42. Qc3 {[%emt 0:00:27]} Rxf2+ {[%emt 0:17:50]} 43. Kg1 {[%emt 0:00:38]} Rg2+ {[%emt 0:01:56]} 44. Rxg2 {[%emt 0:00:11]} Bxg2 {[%emt 0:00:02]} 45. Kxg2 {[%emt 0:00:11]} Qg4+ {[%emt 0:00:35]} 46. Kf2 {[%emt 0:10:12]} Qh4+ {[%emt 0:01:29]} 47. Kf1 {[%emt 0:01:23]} Qe4 {[%emt 0:00:33]} 48. Qc4 {[%emt 0:02:22]} Kd6 {[%emt 0:04:41]} 49. Nf2 {[%emt 0:00:58]} Qa8 {[%emt 0:02:43]} 50. Ke2 {[%emt 0:01:04]} h5 {[%emt 0:00:48]} 51. Ke3 {[%emt 0:00:55]} f5 {[%emt 0:00:35]} 52. Nd3 {[%emt 0:02:05]} Qe4+ {[%emt 0:01:07]} 53. Kd2 {[%emt 0:00:04]} Qg2+ {[%emt 0:00:20]} 54. Kc3 {[%emt 0:00:08]} Qh1 {[%emt 0:00:45]} 55. Qb4+ {[%emt 0:01:42]} Kd7 {[%emt 0:00:05]} 56. Qa3 {[%emt 0:00:08]} Ke8 {[%emt 0:01:26]} 57. Qa7 {[%emt 0:01:30]} h4 {[%emt 0:00:19]} 58. Qxb6 {[%emt 0:00:08]} Ke7 {[%emt 0:00:39]} 59. Qc7+ {[%emt 0:01:35]} Kf6 {[%emt 0:00:13]} 60. b6 {[%emt 0:00:48]} h3 {[%emt 0:01:06]} 61. b7 {[%emt 0:00:52]} 1-0

[Event "Moscow Open RSSU Cup 2019"]
[Site "Moscow"]
[Date "2019.02.03"]
[Round "9"]
[White "Iljiushenok, Ilia"]
[Black "Hayrapetyan, Hovik"]
[Result "0-1"]
[ECO "B23"]
[WhiteElo "2533"]
[BlackElo "2434"]
[Annotator "RC"]
[PlyCount "110"]
[EventDate "2019.01.26"]
[EventType "swiss"]
[EventCountry "RUS"]
[SourceTitle "playchess.com"]
[Source "ChessBase"]
[SourceQuality "1"]
[TimeControl "40/5400+30:1800+30"]

1. e4 {[%emt 0:08:55]} c5 {[%emt 0:00:00]} 2. Nc3 {[%emt 0:00:14]} d6 {[%emt 0:01:57]} 3. d4 {[%emt 0:00:08]} cxd4 {[%emt 0:00:24]} 4. Qxd4 {[%emt 0:00:04]} Nc6 {[%emt 0:00:12]} 5. Qd2 {[%emt 0:00:05]} a6 {[%emt 0:00:42]} 6. b3 {[%emt 0:04:29]} Nf6 {[%emt 0:07:21]} 7. Bb2 {[%emt 0:01:16]} b5 {[%emt 0:00:33]} 8. a3 {[%emt 0:17:47]} e6 {[%emt 0:01:04]} 9. g3 {[%emt 0:01:43]} Bb7 {[%emt 0:00:33]} 10. Bg2 {[%emt 0:00:16]} Be7 {[%emt 0:01:34]} 11. Nge2 {[%emt 0:01:17]} O-O {[%emt 0:00:36]} 12. O-O {[%emt 0:00:23]} Rc8 {[%emt 0:05:15]} 13. Rad1 {[%emt 0:05:00]} Qb6 {[%emt 0:02:28]} 14. h3 {[%emt 0:02:12]} Rfd8 {[%emt 0:09:58]} 15. g4 {[%emt 0:06:27]} a5 {[%emt 0:01:58]} 16. Ng3 {[%emt 0:03:25]} a4 {[%emt 0:03:55]} 17. g5 {[%emt 0:18:10]} Ne8 {[%emt 0:02:56]} 18. Nge2 {[%emt 0:07:42]} Ba6 {[%emt 0:03:28]} 19. b4 {[%emt 0:05:47]} Ne5 {[%emt 0:03:16]} 20. Qf4 {[%emt 0:00:03]} f6 {[%emt 0:11:20]} 21. h4 {[%emt 0:01:23]} g6 {[%emt 0:03:52]} 22. Qg3 {[%emt 0:01:39]} Ng7 {[%emt 0:01:26]} 23. Kh1 {[%emt 0:00:21]} f5 {[%emt 0:02:24]} 24. f4 {[%emt 0:02:46]} Nc4 {[%emt 0:01:55]} 25. Bc1 {[%emt 0:00:20]} fxe4 {[%emt 0:00:02]} 26. Nxe4 {[%emt 0:00:32]} Nf5 {[%emt 0:00:31]} 27. Qg4 {[%emt 0:02:00]} Kf7 {[%emt 0:08:53]} 28. Rd3 {[%emt 0:04:10]} Nce3 {[%emt 0:14:45]} 29. Bxe3 {[%emt 0:00:04]} Nxe3 {[%emt 0:00:04]} 30. Rxe3 {[%emt 0:00:04]} Qxe3 {[%emt 0:00:02]} 31. N2g3 {[%emt 0:00:45]} Rc4 {[%emt 0:00:39]} 32. f5 {[%emt 0:01:28]} exf5 {[%emt 0:00:31]} 33. Nxf5 {[%emt 0:00:05]} gxf5 {[%emt 0:00:22]} 34. Qxf5+ {[%emt 0:04:25]} Ke8 {[%emt 0:00:03]} 35. g6 {[%emt 0:00:57]} hxg6 {[%emt 0:04:11]} 36. Qe6 {[%emt 0:00:01]} Rxe4 {[%emt 0:00:43]} 37. Bxe4 {[%emt 0:00:01]} Bb7 {[%emt 0:00:06]} 38. Qxg6+ {[%emt 0:00:02]} Kd7 {[%emt 0:00:03]} 39. Bxb7 {[%emt 0:00:04]} Rh8 {[%emt 0:00:19]} 40. h5 {[%emt 0:00:00]} Qh3+ {[%emt 0:00:00]} 41. Kg1 {[%emt 0:00:56]} Rxh5 {[%emt 0:05:16]} 42. Bg2 {[%emt 0:04:23]} Qh2+ {[%emt 0:11:28]} 43. Kf2 {[%emt 0:00:14]} Qh4+ {[%emt 0:00:14]} 44. Kg1 {[%emt 0:01:38]} Qd4+ {[%emt 0:02:29]} 45. Rf2 {[%emt 0:00:02]} Rg5 {[%emt 0:07:28]} 46. Qf7 {[%emt 0:00:53]} Qa1+ 47. Rf1 {[%emt 0:01:29]} Qxa3 {[%emt 0:04:36]} 48. Re1 {[%emt 0:12:10]} Re5 {[%emt 0:00:01]} 49. Rxe5 {[%emt 0:00:07]} Qa1+ {[%emt 0:00:05]} 50. Bf1 {[%emt 0:00:51]} Qxe5 {[%emt 0:00:02]} 51. c4 {[%emt 0:08:26]} a3 {[%emt 0:05:52]} 52. Qf3 {[%emt 0:05:56]} a2 {[%emt 0:01:10]} 53. Qb7+ {[%emt 0:02:16]} Ke6 {[%emt 0:00:05]} 54. Bh3+ {[%emt 0:00:13]} Kf6 {[%emt 0:00:11]} 55. Qf3+ {[%emt 0:00:08]} Kg7 {[%emt 0:00:04]} 0-1

[Event "Moscow Open RSSU Cup 2019"]
[Site "Moscow"]
[Date "2019.02.02"]
[Round "9"]
[White "Afanasiev, Nikita"]
[Black "Pridorozhni, Aleksei"]
[Result "1/2-1/2"]
[ECO "C67"]
[WhiteElo "2508"]
[BlackElo "2568"]
[Annotator "ChessBase"]
[PlyCount "80"]
[EventDate "2019.01.26"]
[EventType "swiss"]
[EventCountry "RUS"]
[SourceTitle "playchess.com"]
[Source "ChessBase"]
[SourceQuality "1"]
[TimeControl "40/5400+30:1800+30"]

1. e4 {[%emt 0:00:00]} e5 {[%emt 0:00:00]} 2. Nf3 {[%emt 0:00:00]} Nc6 {[%emt 0:00:00]} 3. Bb5 {[%emt 0:00:00]} Nf6 {[%emt 0:00:00]} 4. O-O {[%emt 0:00:00]} Nxe4 {[%emt 0:00:00]} 5. Re1 {[%emt 0:00:00]} Nd6 {[%emt 0:00:00]} 6. Nxe5 {[%emt 0:00:00]} Nxe5 {[%emt 0:00:13]} 7. Rxe5+ {[%emt 0:00:00]} Be7 {[%emt 0:00:04]} 8. Bf1 {[%emt 0:00:06]} O-O {[%emt 0:00:10]} 9. d4 {[%emt 0:00:04]} Bf6 {[%emt 0:00:15]} 10. Re1 {[%emt 0:00:05]} Re8 {[%emt 0:00:10]} 11. Rxe8+ {[%emt 0:00:08]} Nxe8 {[%emt 0:00:08]} 12. c3 {[%emt 0:00:10]} d5 {[%emt 0:00:06]} 13. Bf4 {[%emt 0:00:05]} g6 {[%emt 0:00:12]} 14. Bd3 {[%emt 0:00:09]} Ng7 {[%emt 0:00:10]} 15. Nd2 {[%emt 0:00:10]} Bf5 {[%emt 0:00:11]} 16. Bxf5 {[%emt 0:00:15]} Nxf5 {[%emt 0:00:05]} 17. Nf3 {[%emt 0:00:06]} c6 {[%emt 0:00:14]} 18. Be5 {[%emt 0:00:18]} Nh4 {[%emt 0:00:26]} 19. Bxf6 {[%emt 0:00:14]} Qxf6 {[%emt 0:00:04]} 20. Nxh4 {[%emt 0:00:07]} Qxh4 {[%emt 0:00:04]} 21. Qe2 {[%emt 0:00:14]} Qf6 {[%emt 0:00:09]} 22. Re1 {[%emt 0:00:11]} Kf8 {[%emt 0:00:09]} 23. Qd2 {[%emt 0:00:13]} Kg7 {[%emt 0:00:10]} 24. g3 {[%emt 0:00:12]} Rd8 {[%emt 0:00:11]} 25. Kg2 {[%emt 0:00:08]} Rd6 {[%emt 0:00:08]} 26. h4 {[%emt 0:00:10]} h5 {[%emt 0:00:06]} 27. Re3 {[%emt 0:00:14]} Re6 {[%emt 0:00:05]} 28. Qe2 {[%emt 0:00:10]} Rxe3 {[%emt 0:00:10]} 29. Qxe3 {[%emt 0:00:04]} Kf8 {[%emt 0:00:07]} 30. Kf1 {[%emt 0:00:18]} Qe7 {[%emt 0:00:11]} 31. Ke2 {[%emt 0:00:09]} Qxe3+ {[%emt 0:00:14]} 32. Kxe3 {[%emt 0:00:07]} Ke7 {[%emt 0:00:06]} 33. b4 {[%emt 0:00:12]} b5 {[%emt 0:00:05]} 34. a3 {[%emt 0:00:06]} a6 {[%emt 0:00:03]} 35. Kf4 {[%emt 0:00:10]} f6 {[%emt 0:00:15]} 36. Ke3 {[%emt 0:00:11]} Ke6 {[%emt 0:00:06]} 37. Kf4 {[%emt 0:00:06]} Kf7 {[%emt 0:00:04]} 38. Kf3 {[%emt 0:00:06]} Ke7 {[%emt 0:00:13]} 39. Ke3 {[%emt 0:00:06]} Kf7 {[%emt 0:00:03]} 40. Kf3 {[%emt 0:00:00]} Ke6 {[%emt 0:00:00] Ke4 Ke5+} 1/2-1/2

[Event "Moscow Open RSSU Cup 2019"]
[Site "Moscow"]
[Date "2019.02.03"]
[Round "9"]
[White "Drygalov, Andrey"]
[Black "Kardashevskiy, Evgeny"]
[Result "1/2-1/2"]
[ECO "C24"]
[WhiteElo "2485"]
[BlackElo "2382"]
[Annotator "ChessBase"]
[PlyCount "45"]
[EventDate "2019.01.26"]
[EventType "swiss"]
[EventCountry "RUS"]
[SourceTitle "playchess.com"]
[Source "ChessBase"]
[SourceQuality "1"]
[TimeControl "40/5400+30:1800+30"]

1. e4 {[%emt 0:00:00]} e5 {[%emt 0:00:00]} 2. Bc4 {[%emt 0:00:00]} Nf6 {[%emt 0:00:07]} 3. d3 {[%emt 0:00:04]} c6 {[%emt 0:00:29]} 4. Nf3 {[%emt 0:00:04]} d5 {[%emt 0:00:34]} 5. Bb3 {[%emt 0:00:42]} Bb4+ {[%emt 0:00:32]} 6. c3 {[%emt 0:01:12]} Bd6 {[%emt 0:00:39]} 7. O-O {[%emt 0:00:51]} dxe4 {[%emt 0:04:18]} 8. Ng5 {[%emt 0:01:47]} O-O {[%emt 0:00:41]} 9. Nxe4 {[%emt 0:00:05]} Nxe4 {[%emt 0:03:30]} 10. dxe4 {[%emt 0:00:03]} Na6 {[%emt 0:04:02]} 11. Nd2 Nc5 {[%emt 0:01:27]} 12. Bc2 {[%emt 0:00:44]} Be6 {[%emt 0:01:01]} 13. Re1 {[%emt 0:03:01]} Be7 {[%emt 0:09:37]} 14. Qe2 {[%emt 0:03:30]} b5 {[%emt 0:02:13]} 15. Nf1 {[%emt 0:03:01]} Qc7 {[%emt 0:03:52]} 16. Ne3 {[%emt 0:10:20]} Rfd8 {[%emt 0:01:06]} 17. Nf5 {[%emt 0:12:38]} Bf8 {[%emt 0:01:00]} 18. Qf3 {[%emt 0:00:33]} Rd7 {[%emt 0:03:52]} 19. Qg3 {[%emt 0:03:44]} Kh8 {[%emt 0:02:49]} 20. Qf3 {[%emt 0:18:46]} Kg8 {[%emt 0:00:19]} 21. Qg3 {[%emt 0:00:04]} Kh8 {[%emt 0:00:06]} 22. Qf3 {[%emt 0:00:03]} Kg8 {[%emt 0:00:05]} 23. Qg3 {[%emt 0:00:03]} 1/2-1/2

[Event "Moscow Open RSSU Cup 2019"]
[Site "Moscow"]
[Date "2019.02.03"]
[Round "9"]
[White "Lugovskoy, Maxim"]
[Black "Tutisani, Noe"]
[Result "0-1"]
[ECO "D78"]
[WhiteElo "2445"]
[BlackElo "2468"]
[Annotator "RC"]
[PlyCount "130"]
[EventDate "2019.01.26"]
[EventType "swiss"]
[EventCountry "RUS"]
[SourceTitle "playchess.com"]
[Source "ChessBase"]
[SourceQuality "1"]
[TimeControl "40/5400+30:1800+30"]

1. d4 {[%emt 0:00:00]} Nf6 {[%emt 0:00:21]} 2. g3 {[%emt 0:00:00]} g6 {[%emt 0:00:57]} 3. Bg2 {[%emt 0:00:00]} d5 {[%emt 0:00:05]} 4. Nf3 {[%emt 0:00:00]} Bg7 {[%emt 0:00:05]} 5. O-O {[%emt 0:00:00]} O-O {[%emt 0:00:06]} 6. c4 {[%emt 0:00:02]} c6 {[%emt 0:00:05]} 7. Qb3 Qb6 {[%emt 0:00:11]} 8. Nc3 {[%emt 0:01:14]} Be6 {[%emt 0:00:38]} 9. c5 {[%emt 0:06:52]} Qa6 {[%emt 0:04:49]} 10. Bf4 {[%emt 0:20:03]} b6 {[%emt 0:00:30]} 11. cxb6 axb6 12. Ne5 {[%emt 0:02:46]} Nh5 {[%emt 0:01:26]} 13. Rfc1 {[%emt 0:04:43]} Rd8 {[%emt 0:10:30]} 14. a4 {[%emt 0:14:12]} h6 {[%emt 0:07:32]} 15. Qa3 {[%emt 0:03:51]} Qb7 {[%emt 0:05:32]} 16. b4 {[%emt 0:01:02]} Nxf4 {[%emt 0:14:40]} 17. gxf4 {[%emt 0:00:34]} Nd7 {[%emt 0:00:11]} 18. b5 {[%emt 0:04:23]} Nxe5 {[%emt 0:01:58]} 19. fxe5 {[%emt 0:00:03]} cxb5 {[%emt 0:00:51]} 20. Nxb5 {[%emt 0:00:05]} Rdc8 {[%emt 0:00:04]} 21. Qb3 {[%emt 0:03:28]} Qd7 {[%emt 0:05:07]} 22. Nc3 {[%emt 0:01:04]} Rc4 {[%emt 0:00:34]} 23. Qxb6 {[%emt 0:13:38]} Rac8 {[%emt 0:00:40]} 24. a5 {[%emt 0:01:48]} Bh3 {[%emt 0:04:42]} 25. f3 {[%emt 0:05:46]} h5 {[%emt 0:04:41]} 26. a6 {[%emt 0:06:09]} Bh6 {[%emt 0:00:20]} 27. a7 {[%emt 0:00:25]} Be3+ {[%emt 0:00:53]} 28. Kh1 {[%emt 0:00:10]} Bxd4 {[%emt 0:01:21]} 29. e6 {[%emt 0:00:57]} Bxe6 {[%emt 0:01:20]} 30. Qb8 {[%emt 0:10:09]} Bxa7 31. Qxa7 {[%emt 0:00:44]} Qxa7 {[%emt 0:00:09]} 32. Rxa7 {[%emt 0:00:06]} Rxc3 {[%emt 0:00:04]} 33. Rxc3 {[%emt 0:00:04]} Rxc3 {[%emt 0:00:03]} 34. Kg1 {[%emt 0:00:04]} Kf8 {[%emt 0:00:04]} 35. Kf2 {[%emt 0:00:20]} d4 {[%emt 0:00:46]} 36. f4 {[%emt 0:01:00]} Rc2 {[%emt 0:00:39]} 37. Be4 {[%emt 0:00:07]} Rc8 {[%emt 0:01:42]} 38. Bd3 {[%emt 0:00:44]} Rd8 {[%emt 0:00:32]} 39. Kf3 {[%emt 0:00:16]} Bg4+ {[%emt 0:00:20]} 40. Kg3 {[%emt 0:00:00]} Rd7 {[%emt 0:00:00]} 41. Ra6 {[%emt 0:01:16]} Kg7 {[%emt 0:02:18]} 42. Rb6 {[%emt 0:00:15]} e6 {[%emt 0:05:01]} 43. h3 {[%emt 0:01:44]} Bf5 {[%emt 0:02:08]} 44. Bxf5 {[%emt 0:00:07]} gxf5 {[%emt 0:01:25]} 45. Rb3 {[%emt 0:00:34]} Rc7 {[%emt 0:01:24]} 46. Kh4 {[%emt 0:02:09]} Rc3 {[%emt 0:00:11]} 47. Rb2 {[%emt 0:01:45]} Kf6 {[%emt 0:03:03]} 48. Rd2 {[%emt 0:02:28]} e5 {[%emt 0:00:23]} 49. fxe5+ {[%emt 0:00:06]} Kxe5 {[%emt 0:00:04]} 50. Ra2 {[%emt 0:00:21]} Kf4 {[%emt 0:01:08]} 51. Ra7 {[%emt 0:00:37]} Re3 {[%emt 0:00:22]} 52. Rd7 {[%emt 0:00:32]} Ke4 {[%emt 0:03:33]} 53. Re7+ {[%emt 0:00:06]} Kd5 {[%emt 0:01:21]} 54. Rd7+ {[%emt 0:02:59]} Kc4 {[%emt 0:01:12]} 55. Rxf7 {[%emt 0:02:59]} Rxe2 {[%emt 0:00:10]} 56. Kxh5 {[%emt 0:00:06]} d3 {[%emt 0:02:28]} 57. Kg5 {[%emt 0:00:31]} Re5 {[%emt 0:01:00]} 58. Kf4 {[%emt 0:00:42]} Rd5 {[%emt 0:03:15]} 59. Rc7+ {[%emt 0:00:14]} Kb3 {[%emt 0:00:34]} 60. Rb7+ {[%emt 0:00:17]} Kc2 {[%emt 0:00:35]} 61. Rc7+ {[%emt 0:00:04]} Kd1 {[%emt 0:00:40]} 62. h4 {[%emt 0:00:53]} d2 {[%emt 0:00:10]} 63. Ke3 {[%emt 0:00:24]} Ke1 {[%emt 0:00:13]} 64. Rg7 {[%emt 0:00:05]} f4+ {[%emt 0:00:16]} 65. Ke4 {[%emt 0:00:09]} Rd8 {[%emt 0:02:20]} 0-1